Cogmind - Beta 10.2 @@@ ROGUE MODE // 2020.11.30 @ 23:37:06 // Halloween2020/ForbiddenLore Player: Demise Result: Destroyed by G-50 Soldier with Heavy Laser Performance ------------- Evolutions (4) 2000 Regions Visited (17) 3400 Robots Destroyed (154) 770 Value Destroyed (4722) 4722 Prototype IDs (51) 1020 Alien Tech Used (0) 0 Bonus (507) 507 TOTAL SCORE: 12419 Bonus ------- High Alert Combat Kills 73 Follower Combat Kills 255 Aligned with FarCom 300 Met Data Miner 300 Friendly Fire -421 Cogmind --------- Core Integrity 0/850 Matter 300/300 Energy 100/100 System Corruption 3% Temperature Cool (18) Movement Core (550) Ox10 Location -6/Lower Caves Parts ------- > --- POWER (1) -------- (None) > --- PROPULSION (2) --- (None) > --- UTILITY (8) ------ High-capacity Storage Unit Advanced Signal Interpreter > --- WEAPON (4) ------- (None) > --- INVENTORY (12) --- Makeshift Power Source High-capacity Storage Unit High-capacity Matter Pod (200) Hacking Suite System Shield Hypervelocity Gauss Cannon Remote Datajack Peak State ------------ > --- POWER ------------ Neutrino Core > --- PROPULSION ------- Armored Huge Wheel > --- UTILITY ---------- High-capacity Storage Unit High-capacity Storage Unit Improved Medium Armor Plating Damper Plating Makeshift Hacking Suite System Shield > --- WEAPON ----------- Heavy Beamcaster Phase Cannon Gauss Rifle Enhanced Force Lance > --- INVENTORY -------- Makeshift Power Source Makeshift Power Source Heavy Treads Heavy Treads Improved Cooling System High-capacity Matter Pod Gravity Neutralizing Apparatus Force Field Hacking Suite System Shield Force Rifle HERF Cannon Flak Gun Heavy Battle Rifle Hypervelocity Gauss Cannon Advanced EMP Blaster Improved Grenade Launcher Remote Datajack [Rating: 77] Favorites ----------- Power Makeshift Power Source Engine Makeshift Power Source Power Core Light Nuclear Core Propulsion Light Treads Treads Light Treads Leg Aluminum Leg Wheel Armored Huge Wheel Hover Unit Makeshift Hover Unit Flight Unit Improved VTOL Module Utility High-capacity Storage Unit Device Gravity Neutralizing Apparatus Storage High-capacity Storage Unit Processor Advanced Core Analyzer Hackware System Shield Protection Damper Plating Weapon Gauss Rifle Energy Gun Heavy Particle Gun Energy Cannon Phase Cannon Ballistic Gun Gauss Rifle Ballistic Cannon AWS/Autocannon Launcher Advanced EMP Blaster Impact Weapon Mace Slashing Weapon Katana Piercing Weapon Enhanced Force Lance Build | -11 -10 -10 -9 -9 -9 -8 -8 -7 -7 -7 -7 -6 -6 -6 -6 -6 -6 ------- Run | Scr Mat Min Mat Min Exi Min Mat Fac Low Low Dat Pro Fac Was Fac Low Low Slots Evolved 8 | . . . 2 . . . 2 2 . . . . 2 . . . . Power . | . . . . . . . . . . . . . . . . . . Propulsion . | . . . . . . . . . . . . . . . . . . Utility 6 | . . . . . . . 2 2 . . . . 2 . . . . Weapon 2 | . . . 2 . . . . . . . . . . . . . . Parts Attached 166 | 1 3 2 9 14 29 . 16 37 2 9 5 2 3 7 7 12 8 Power 19 | . . 1 . 3 4 . 1 4 . 2 . . . 1 1 1 1 Engine 14 | . . 1 . 3 2 . 1 4 . 1 . . . . 1 . 1 Core 5 | . . . . . 2 . . . . 1 . . . 1 . 1 . Reactor . | . . . . . . . . . . . . . . . . . . Propulsion 34 | . 2 . 2 1 9 . 7 9 . 1 . . . . 1 . 2 Treads 11 | . 2 . 1 1 1 . 2 2 . . . . . . 1 . 1 Leg 14 | . . . . . 5 . 3 6 . . . . . . . . . Wheel 3 | . . . 1 . . . . 1 . 1 . . . . . . . Hover 3 | . . . . . 3 . . . . . . . . . . . . Flight 3 | . . . . . . . 2 . . . . . . . . . 1 Utility 38 | 1 . . . . 10 . 2 11 . 1 1 . 1 3 2 6 . Device 13 | . . . . . 3 . . 4 . . . . 1 . 2 3 . Storage 6 | 1 . . . . 5 . . . . . . . . . . . . Processor 4 | . . . . . 1 . 1 1 . . . . . . . 1 . Hackware 5 | . . . . . . . . 4 . 1 . . . . . . . Protection 10 | . . . . . 1 . 1 2 . . 1 . . 3 . 2 . Artifact . | . . . . . . . . . . . . . . . . . . Weapon 75 | . 1 1 7 10 6 . 6 13 2 5 4 2 2 3 3 5 5 Energy Gun 18 | . . . 1 . . . 2 9 . 1 1 . 1 1 1 1 . Energy Cannon 3 | . . . . . . . . . . . . . 1 . . . 2 Ballistic Gun 39 | . 1 . 6 10 3 . 2 4 2 3 3 1 . . 2 2 . Ballistic Cannon 3 | . . . . . 2 . 1 . . . . . . . . . . Launcher 7 | . . 1 . . 1 . . . . 1 . . . . . 1 3 Special Weapon . | . . . . . . . . . . . . . . . . . . Impact Weapon 1 | . . . . . . . . . . . . 1 . . . . . Slashing Weapon 2 | . . . . . . . 1 . . . . . . 1 . . . Piercing Weapon 2 | . . . . . . . . . . . . . . 1 . 1 . Special Melee Weapon . | . . . . . . . . . . . . . . . . . . Unidentified Prototypes 10 | . . . . . 5 . 4 1 . . . . . . . . . Parts Lost 62 | . . 1 3 2 8 . 4 17 1 4 . 1 . . . 6 15 Power 8 | . . 1 1 1 . . 1 1 . 1 . . . . . . 2 Propulsion 15 | . . . 2 . 3 . 2 4 . 1 . . . . . . 3 Utility 15 | . . . . . 1 . . 4 . 1 . . . . . 4 5 Weapon 24 | . . . . 1 4 . 1 8 1 1 . 1 . . . 2 5 Highest Loss Streak 15 | . . 1 2 1 7 . 2 5 1 2 . 1 . . . 4 15 Average Slot Usage (%) 86 | . 100 99 93 96 79 77 86 93 90 90 56 92 83 80 77 79 65 Engine 6 | . 14 13 7 8 8 11 8 6 7 1 . . . . 3 . . Core 1 | . . . . . . . . . . 4 7 7 6 6 2 5 4 Treads 5 | . 14 28 17 11 5 . 12 2 . . . . . . 3 6 5 Leg 4 | . 13 . . . 5 22 3 9 . . . . . . . . . Wheel 3 | . . . 3 11 4 . . . 7 6 7 7 6 6 2 . . Device 2 | . . . . . . . . 2 7 7 7 7 11 1 3 6 17 Storage 17 | . 28 28 22 22 18 22 18 15 15 15 15 15 13 13 13 13 12 Processor 3 | . . . . . 2 . 7 9 7 5 . . . . . 1 6 Hackware 6 | . . . . . . . . 14 15 15 15 15 13 13 13 8 . Protection 3 | . . . . . . . 7 2 . . . 7 6 11 8 12 4 Energy Gun 4 | . . . 1 . . . 3 15 . . . 7 6 6 6 3 . Ballistic Gun 18 | . 28 27 39 43 26 11 9 3 26 28 3 21 13 6 12 17 10 Ballistic Cannon 2 | . . . . . 5 11 8 . . . . . . . . . . Slashing Weapon 1 | . . . . . . . 5 7 1 . . . . 1 . . . Naked Turns . | . . . . . . . . . . . . . . . . . . Heaviest Build 155 | 16 17 18 21 25 135 131 135 89 84 87 87 87 100 155 155 139 87 Greatest Support 82 | 20 40 40 40 20 50 50 50 40 40 40 40 40 40 40 70 82 82 Greatest Overweight (x) 43 | . . . 6 1 43 2 29 8 2 3 2 2 2 5 5 1 21 Average Overweight (x) 2 | . . . . 1 3 2 3 3 1 2 1 2 2 4 2 1 1 Largest Inventory Capacity 20 | 8 8 8 8 8 20 20 20 20 20 20 20 20 20 20 20 20 20 Average Capacity 17 | 6 8 8 8 8 16 20 20 20 20 20 20 20 20 20 20 20 19 Most Carried 20 | 6 8 8 8 8 20 20 20 20 20 20 20 15 17 20 20 20 16 Average Carried 16 | 6 7 7 7 7 12 20 19 19 20 18 19 15 14 19 19 18 13 Final Capacity 20 | 8 8 8 8 8 20 20 20 20 20 20 20 20 20 20 20 20 12 Final Carried 20 | 6 8 8 8 8 20 20 20 20 20 16 15 15 17 20 20 16 7 Class Distribution -------------------- 34% | Scavenger-Gunner 13% | Scavenger-Mutant 12% | Hauler-Gunner 7% | Hacker-Gunner 7% | Hacker-Mutant 7% | Hacker-Tank 6% | Scavenger-Tank 6% | Gunner 5% | Mutant Dominant Class ---------------- Mutant | -10/Materials Mutant | -10/Mines Gunner | -9/Materials Scavenger-Gunner | -9/Mines Scavenger-Gunner | -9/Exiles Hauler-Gunner | -8/Mines Scavenger-Gunner | -8/Materials Scavenger-Gunner | -7/Factory Hacker-Gunner | -7/Lower Caves Hacker-Gunner | -7/Lower Caves Hacker-Mutant | -7/Data Miner Hacker-Tank | -6/Proximity Caves Hacker-Tank | -6/Factory Hacker-Mutant | -6/Waste Scavenger-Tank | -6/Factory Scavenger-Tank | -6/Lower Caves Scavenger-Mutant | -6/Lower Caves Resources | -11 -10 -10 -9 -9 -9 -8 -8 -7 -7 -7 -7 -6 -6 -6 -6 -6 -6 ----------- Run | Scr Mat Min Mat Min Exi Min Mat Fac Low Low Dat Pro Fac Was Fac Low Low Matter Collected 4879 | 230 107 192 335 489 501 214 715 485 120 319 . 268 . 118 204 473 109 Remotely . | . . . . . . . . . . . . . . . . . . Salvage Created 6570 | 93 158 235 697 227 174 200 1078 1247 99 425 . 328 . 571 387 499 152 Parts 319 | 2 12 17 39 14 42 12 47 53 3 23 . . . 10 18 23 4 Haulers Intercepted 6 | . . . . . . . 5 1 . . . . . . . . . Recyclers Shooed 2 | . . . . . . . . 2 . . . . . . . . . Parts Field Recycled . | . . . . . . . . . . . . . . . . . . Retrieved Matter . | . . . . . . . . . . . . . . . . . . Parts Self-Destructed 50 | . . . . . . . . . 3 18 . 8 . . . 17 4 Prevented 7 | . . . . . . . . . . 6 . . . . . 1 . Kills | -11 -10 -10 -9 -9 -9 -8 -8 -7 -7 -7 -7 -6 -6 -6 -6 -6 -6 ------- Run | Scr Mat Min Mat Min Exi Min Mat Fac Low Low Dat Pro Fac Was Fac Low Low Combat Hostiles Destroyed 131 | . 5 9 14 13 6 8 24 18 4 10 . . . . 6 11 3 Melee 2 | . . . . . . . . 1 . . . . . . . . 1 Guns 95 | . 5 7 14 13 1 2 10 16 4 9 . . . . 5 8 1 Cannons 23 | . . . . . 3 5 14 . . . . . . . 1 . . AOE 9 | . . 2 . . 2 . . . . 1 . . . . . 3 1 Classes Destroyed 17 | 2 3 . 3 1 2 1 3 1 . . . . . . . 1 . Worker 4 | . 1 . 1 1 . . . 1 . . . . . . . . . Builder 1 | . . . . . . 1 . . . . . . . . . . . Tunneler 3 | 1 . . 1 . . . 1 . . . . . . . . . . Hauler 6 | . . . . . . . 5 1 . . . . . . . . . Recycler 6 | 1 . . 2 . . . . 3 . . . . . . . . . Turret 1 | . . . . . 1 . . . . . . . . . . . . Watcher 2 | . . . . . . . 1 . . . . . . . 1 . . Swarmer 38 | . 2 5 4 8 . 3 4 . 4 3 . . . . . 4 1 Grunt 60 | . 3 4 6 . . 4 18 10 . 6 . . . . 3 5 1 Brawler 3 | . . . 1 . . . . . . 1 . . . . . 1 . Duelist 4 | . . . 1 . . 1 . . . . . . . . . 1 1 Sentry 8 | . . . 2 . . . 1 3 . . . . . . 2 . . Hunter 3 | . . . . . . . 1 2 . . . . . . . . . Programmer 4 | . . . . . . . . 3 . . . . . . 1 . . Zionite 8 | . . . . . 8 . . . . . . . . . . . . Samaritan 1 | . . . . . . . . . . . . . . . . 1 . Assembled 10 | . . . . 5 5 . . . . . . . . . . . . Best Kill Streak 9 | 2 3 3 6 3 9 3 8 5 4 8 . . . . 1 7 2 Combat Bots Only 8 | . 2 3 5 3 3 3 8 3 4 8 . . . . 1 7 2 Max Kills in Single Turn 2 | 1 2 2 1 2 2 1 2 1 1 2 . . . . 1 2 1 Gunslinging 1 | . . . . 1 . . . . . . . . . . . 1 . Exploded 2 | . . 2 . . 2 . . . . 1 . . . . . 1 1 Melee 1 | . . . . . . . . 1 . . . . . . . . 1 Uniques/NPCs Destroyed 4 | . . . . . 4 . . . . . . . . . . . . 8R-AWN (-9/Exiles) EX-HEX (-9/Exiles) EX-BIN (-9/Exiles) EX-DEC (-9/Exiles) Combat | -11 -10 -10 -9 -9 -9 -8 -8 -7 -7 -7 -7 -6 -6 -6 -6 -6 -6 -------- Run | Scr Mat Min Mat Min Exi Min Mat Fac Low Low Dat Pro Fac Was Fac Low Low Damage Taken 11142 | . 271 360 457 607 1031 65 1245 2203 234 740 . 135 . . 527 1123 2144 Core 2168 | . 79 71 61 117 128 10 158 500 27 143 . 19 . . 230 66 559 Absorbed by Shields 232 | . . . . . . . . 151 . . . . . . . 49 32 Core Remaining (%) 46 | 100 . 40 . . . 21 71 . . . . 1 . . . . . Volleys Fired 381 | 5 19 26 30 39 26 12 79 64 7 24 . . 2 . 15 18 15 Largest 4 | 2 2 2 4 4 4 1 3 3 3 4 . . 4 . 4 4 3 Hottest 227 | 40 40 50 100 89 96 23 124 185 84 120 . . 196 . 227 164 139 Shots Fired 1080 | 10 38 52 119 156 107 35 174 142 17 89 . . 8 . 50 55 28 Gun 935 | 10 38 50 119 156 75 12 106 142 17 87 . . 6 . 41 51 25 Cannon 133 | . . . . . 30 23 68 . . . . . 2 . 9 . 1 Launcher 12 | . . 2 . . 2 . . . . 2 . . . . . 4 2 Special . | . . . . . . . . . . . . . . . . . . Kinetic 910 | 10 38 50 110 156 105 35 162 41 17 87 . . 4 . 26 44 25 Thermal 151 | . . . 9 . . . 12 101 . . . . 2 . 24 3 . Explosive 9 | . . 2 . . 2 . . . . . . . . . . 4 1 Electromagnetic 10 | . . . . . . . . . . 2 . . 2 . . 4 2 Robot Hit Streak 31 | 5 5 17 28 29 31 9 20 18 3 4 . . . . 8 9 9 Robot Miss Streak 8 | 1 4 3 3 5 2 3 4 4 4 8 . . . . 4 4 3 Penetration Max 1 | . . . . . . . . . . 1 . . . . . . . Secondary Targets 17 | . 1 2 5 3 . . . 1 . 2 . . . . . 3 . Max Gunslinging Chain 1 | . 1 1 1 1 . . . 1 . 1 . . . . . 1 . Autonomous 76 | . . . . . 30 23 23 . . . . . . . . . . Shots Hit Robots 747 | 8 21 33 86 86 91 23 130 110 7 44 . 8 . 9 28 42 21 Core Hits 356 | 3 11 11 34 29 30 10 51 66 6 27 . . . 3 14 41 20 Critical Hits 13 | . . 2 . 2 2 . 2 . . 2 . . . . 1 1 1 Critical Kills 6 | . . 1 . 1 . . 2 . . 1 . . . . 1 . . Critical Parts Destroyed 7 | . . 1 . 1 2 . . . . 1 . . . . . 1 1 Melee Attacks 36 | . . . . . . . 1 15 1 . . 8 . 10 . 1 . Impact 8 | . . . . . . . . . . . . 8 . . . . . Slashing 26 | . . . . . . . 1 15 1 . . . . 9 . . . Piercing 2 | . . . . . . . . . . . . . . 1 . 1 . Sneak Attacks 2 | . . . . . . . . 2 . . . . . . . . . Combat Hostiles . | . . . . . . . . . . . . . . . . . . Follow-up Attacks . | . . . . . . . . . . . . . . . . . . Damage Inflicted 17227 | 89 274 468 1151 692 3083 1300 3319 2082 142 1018 . 492 . 512 909 1003 693 Guns 9004 | 89 274 404 934 692 757 82 1353 1868 142 823 . . . . 479 701 406 Cannons 5461 | . . . . . 2158 1218 1930 . . . . . . . 124 . 31 Explosions 1457 | . . 64 217 . 168 . . . . 195 . . . . 300 302 211 Melee 1252 | . . . . . . . 34 214 . . . 492 . 512 . . . Ramming 53 | . . . . . . . 2 . . . . . . . 6 . 45 Kinetic 12393 | 89 274 404 860 692 2915 1300 3117 583 142 823 . . . . 208 580 406 Thermal 2486 | . . . 291 . . . 166 1285 . . . . . . 695 49 . Explosive 658 | . . 64 . . 168 . . . . . . . . . . 302 124 Electromagnetic 385 | . . . . . . . . . . 195 . . . . . 72 118 Impact 492 | . . . . . . . . . . . . 492 . . . . . Slashing 760 | . . . . . . . 34 214 . . . . . 512 . . . Piercing . | . . . . . . . . . . . . . . . . . . Highest Corruption 7 | . . . . . . . . 1 . 7 7 7 . . . 3 3 Average Corruption 5 | . . . . . . . . 1 . 6 7 7 . . . 3 3 Corruption Purged 1 | . . . . . . . . 1 . . . . . . . . . Effects 43 | . . . . . . . . 1 . 22 3 10 . . . 1 6 Message Errors 9 | . . . . . . . . . . 5 . 2 . . . . 2 Matter Fused 13 | . . . . . . . . . . 7 1 3 . . . 1 1 Heat Flow Errors 4 | . . . . . . . . . . 2 2 . . . . . . Energy Discharges 7 | . . . . . . . . . . 3 . 3 . . . . 1 Data Loss (minor) 2 | . . . . . . . . 1 . . . 1 . . . . . Data Loss (major) 2 | . . . . . . . . . . 1 . 1 . . . . . Misfires 1 | . . . . . . . . . . 1 . . . . . . . Targeting Errors 4 | . . . . . . . . . . 3 . . . . . . 1 Weapon Failures 1 | . . . . . . . . . . . . . . . . . 1 Overload Shots . | . . . . . . . . . . . . . . . . . . Overflow Damage 1494 | . . . 118 . 192 422 310 56 . . . 335 . 10 14 18 19 Projectiles 903 | . . . . . 171 422 310 . . . . . . . . . . Explosions 184 | . . . 118 . 21 . . . . . . . . . 14 18 13 Melee 407 | . . . . . . . . 56 . . . 335 . 10 . . 6 Knockbacks 28 | . . . . . 7 9 12 . . . . . . . . . . Impact . | . . . . . . . . . . . . . . . . . . Kinetic 24 | . . . . . 7 7 10 . . . . . . . . . . Secondary 4 | . . . . . . 2 2 . . . . . . . . . . Self-Inflicted Damage 281 | . . 2 63 . . . 1 93 . 36 . . . . . 23 63 Shots 8 | . . 1 1 . . . . 1 . 2 . . . . . 1 2 Rammed 14 | . . . . . . . 1 . . . . . . . 1 . 12 Targets Rammed 15 | . . . . . . . 1 . . . . . . . 1 . 13 Kicked . | . . . . . . . . . . . . . . . . . . Crushed 1 | . . . . . . . . . . . . . . . . . 1 Highest Temperature 944 | . 2 5 228 101 258 11 478 466 9 280 252 5 222 . 944 463 . Average Temperature 143 | . 2 5 62 32 132 2 136 159 5 94 110 5 119 . 253 267 . Received Heat Transfer 2756 | . 66 108 138 9 9 9 477 683 . 225 . 66 . . 135 264 567 Effects 49 | . . . . . 1 . 3 3 . . . . . . 32 10 . Shutdowns 8 | . . . . . . . 1 2 . . . . . . 2 3 . Energy Bleed 12 | . . . . . 1 . 2 . . . . . . . 5 4 . Interference 6 | . . . . . . . . 1 . . . . . . 4 1 . Matter Decay 4 | . . . . . . . . . . . . . . . 3 1 . Short Circuit 4 | . . . . . . . . . . . . . . . 3 1 . Damage (minor) 1 | . . . . . . . . . . . . . . . 1 . . Damage (major) 12 | . . . . . . . . . . . . . . . 12 . . Damage (core) 2 | . . . . . . . . . . . . . . . 2 . . Siege Activations . | . . . . . . . . . . . . . . . . . . Robots Corrupted . | . . . . . . . . . . . . . . . . . . Combat Hostiles . | . . . . . . . . . . . . . . . . . . Parts Fried 7 | . . . . . . . . . . . . 5 . . . . 2 Impact Corruptions 32 | . . . . . . 5 . . . . . 25 . . . . 2 Robots Melted 1 | . . . . . . . . 1 . . . . . . . . . Combat Hostiles 1 | . . . . . . . . 1 . . . . . . . . . Parts Melted 5 | . . . . . . . . 5 . . . . . . . . . Heat Transferred 4077 | . . . 325 . . . 333 2590 . . . . . . 755 74 . Parts Sabotaged . | . . . . . . . . . . . . . . . . . . Parts Stolen 7 | . . . . . . . . . . 5 . . . . . . 2 Parts Stripped . | . . . . . . . . . . . . . . . . . . Power Chain Reactions . | . . . . . . . . . . . . . . . . . . Missiles Intercepted . | . . . . . . . . . . . . . . . . . . Alert | -11 -10 -10 -9 -9 -9 -8 -8 -7 -7 -7 -7 -6 -6 -6 -6 -6 -6 ------- Run | Scr Mat Min Mat Min Exi Min Mat Fac Low Low Dat Pro Fac Was Fac Low Low Peak Influence 526 | 10 146 261 526 303 . 216 422 240 . . . . 96 34 168 . . Initial 138 | . 6 56 101 138 . . 6 130 . . . . 63 33 . . . Average 132 | 8 60 155 292 165 . 104 263 93 . . . . 89 24 59 . . Maximum Alert Level 2 | . . 1 2 1 . 1 2 1 . . . . . . . . . Low Security (%) 73 | 100 100 93 23 61 . 62 19 93 . . . . 100 100 100 . . Level 1 24 | . . 6 64 38 . 37 75 6 . . . . . . . . . Level 2 1 | . . . 12 . . . 5 . . . . . . . . . . Level 3 . | . . . . . . . . . . . . . . . . . . Level 4 . | . . . . . . . . . . . . . . . . . . Level 5 . | . . . . . . . . . . . . . . . . . . High Security . | . . . . . . . . . . . . . . . . . . Max Security . | . . . . . . . . . . . . . . . . . . Squads Dispatched 18 | . 2 . 1 . . . 4 5 . . . . 1 . 4 . 1 Investigation 5 | . . . . . . . 1 2 . . . . . . 2 . . Extermination 5 | . . . . . . . . 3 . . . . 1 . 1 . . Reinforcement 7 | . 2 . 1 . . . 3 . . . . . . . 1 . . Assault 1 | . . . . . . . . . . . . . . . . . 1 Garrison . | . . . . . . . . . . . . . . . . . . Intercept . | . . . . . . . . . . . . . . . . . . Construction Impeded 1 | . . . . . . . 1 . . . . . . . . . . Haulers Reinforced . | . . . . . . . . . . . . . . . . . . Stealth | -11 -10 -10 -9 -9 -9 -8 -8 -7 -7 -7 -7 -6 -6 -6 -6 -6 -6 --------- Run | Scr Mat Min Mat Min Exi Min Mat Fac Low Low Dat Pro Fac Was Fac Low Low Distress Signals 5 | . . . 3 1 . . 1 . . . . . . . . . . Communications Jammed . | . . . . . . . . . . . . . . . . . . Distress Signals . | . . . . . . . . . . . . . . . . . . Times Spotted 218 | . 8 10 19 18 22 11 37 23 5 18 . 7 . . 14 18 8 Peak Tracking Total 10 | . 3 3 5 3 9 4 5 3 4 10 . 4 1 . 4 7 9 Tactical Retreats 13 | . . 1 1 2 2 . 2 . 1 3 . . . . . . 1 Traps | -11 -10 -10 -9 -9 -9 -8 -8 -7 -7 -7 -7 -6 -6 -6 -6 -6 -6 ------- Run | Scr Mat Min Mat Min Exi Min Mat Fac Low Low Dat Pro Fac Was Fac Low Low Traps Triggered 2 | . . . . . . . . . . . . . 1 . 1 . . Indirectly . | . . . . . . . . . . . . . . . . . . Trap Hack Attempts . | . . . . . . . . . . . . . . . . . . Triggered . | . . . . . . . . . . . . . . . . . . Disarmed . | . . . . . . . . . . . . . . . . . . Reprogrammed . | . . . . . . . . . . . . . . . . . . Reused . | . . . . . . . . . . . . . . . . . . Traps Extracted . | . . . . . . . . . . . . . . . . . . Installed . | . . . . . . . . . . . . . . . . . . Triggered 2 | . . . . . . . . . . . . . . . . 2 . Exploded 3 | . . . . . 3 . . . . . . . . . . . . Machines | -11 -10 -10 -9 -9 -9 -8 -8 -7 -7 -7 -7 -6 -6 -6 -6 -6 -6 ---------- Run | Scr Mat Min Mat Min Exi Min Mat Fac Low Low Dat Pro Fac Was Fac Low Low Machines Disabled 18 | . 1 . 2 1 6 . 1 1 . 2 . . 1 . 2 1 . Max in Single Turn 2 | . 1 . 2 1 2 . 1 1 . 1 . . 1 . 1 1 . Garrison Access 1 | . . . . . . . . 1 . . . . . . . . . Machines Sabotaged . | . . . . . . . . . . . . . . . . . . Garrisons Compromised . | . . . . . . . . . . . . . . . . . . Overloaded Fab Kills . | . . . . . . . . . . . . . . . . . . Fab Network Shutdowns . | . . . . . . . . . . . . . . . . . . Hacking | -11 -10 -10 -9 -9 -9 -8 -8 -7 -7 -7 -7 -6 -6 -6 -6 -6 -6 --------- Run | Scr Mat Min Mat Min Exi Min Mat Fac Low Low Dat Pro Fac Was Fac Low Low Machines Accessed 36 | . 3 . 3 . 2 . 3 15 . 1 4 . . . 4 1 . Terminals 17 | . 3 . 2 . . . 3 6 . 1 . . . . 2 . . Fabricators 2 | . . . . . . . . 2 . . . . . . . . . Repair Stations 3 | . . . . . . . . 3 . . . . . . . . . Recycling Units 2 | . . . 1 . . . . 1 . . . . . . . . . Scanalyzers 4 | . . . . . . . . 2 . . . . . . 2 . . Garrison Access 1 | . . . . . . . . 1 . . . . . . . . . Total Hacks 129 | . 6 . 14 . 5 . 8 48 . 5 30 . . . 12 1 . Successful 94 | . 1 . 9 . 5 . 3 36 . 5 30 . . . 4 1 . Failed 35 | . 5 . 5 . . . 5 12 . . . . . . 8 . . Catastrophic 9 | . 1 . 2 . . . 2 . . . . . . . 4 . . Database Lockouts . | . . . . . . . . . . . . . . . . . . Manual 42 | . 4 . 8 . 1 . 8 13 . . . . . . 8 . . Terminals 56 | . 6 . 11 . . . 8 18 . 5 . . . . 8 . . Fabricators 6 | . . . . . . . . 6 . . . . . . . . . Repair Stations 10 | . . . . . . . . 10 . . . . . . . . . Recycling Units 6 | . . . 3 . . . . 3 . . . . . . . . . Scanalyzers 12 | . . . . . . . . 8 . . . . . . 4 . . Garrison Access 3 | . . . . . . . . 3 . . . . . . . . . Terminal Hacks 57 | . . . 4 . 5 . 2 10 . 5 30 . . . . 1 . Record 21 | . . . . . 4 . . . . 5 11 . . . . 1 . Part Schematic 12 | . . . . . . . . 2 . . 10 . . . . . . Robot Schematic 6 | . . . . . . . . . . . 6 . . . . . . Prototype ID Bank 5 | . . . 1 . . . . 1 . . 3 . . . . . . Level Access Points 1 | . . . . . . . 1 . . . . . . . . . . Branch Access Points 2 | . . . . . . . 1 1 . . . . . . . . . Machine Index 1 | . . . . . . . . 1 . . . . . . . . . Terminal Index 1 | . . . . . . . . 1 . . . . . . . . . Alert Level 2 | . . . 1 . . . . 1 . . . . . . . . . Unreport Threat 2 | . . . . . . . . 2 . . . . . . . . . Locate Traps 1 | . . . 1 . . . . . . . . . . . . . . Zone Layout 2 | . . . 1 . . . . 1 . . . . . . . . . EX-Prototype ID Bank 1 | . . . . . 1 . . . . . . . . . . . . Fabricator Hacks 4 | . . . . . . . . 4 . . . . . . . . . Load Schematic 2 | . . . . . . . . 2 . . . . . . . . . Build 2 | . . . . . . . . 2 . . . . . . . . . Repair Station Hacks 9 | . . . . . . . . 9 . . . . . . . . . Scan Component 5 | . . . . . . . . 5 . . . . . . . . . Repair 4 | . . . . . . . . 4 . . . . . . . . . Recycling Unit Hacks 4 | . . . 2 . . . . 2 . . . . . . . . . Report Inventory 2 | . . . 1 . . . . 1 . . . . . . . . . Retrieve Components 2 | . . . 1 . . . . 1 . . . . . . . . . Scanalyzer 7 | . . . . . . . . 5 . . . . . . 2 . . Insert Component 4 | . . . . . . . . 3 . . . . . . 1 . . Analyze 3 | . . . . . . . . 2 . . . . . . 1 . . Garrison Access Hacks 1 | . . . . . . . . 1 . . . . . . . . . Seal Access 1 | . . . . . . . . 1 . . . . . . . . . Unauthorized Hacks 12 | . 1 . 3 . . . 1 5 . . . . . . 2 . . Terminals 11 | . 1 . 3 . . . 1 4 . . . . . . 2 . . Track 1 | . . . 1 . . . . . . . . . . . . . . Assimilate 1 | . . . . . . . . 1 . . . . . . . . . Botnet 8 | . 1 . 1 . . . 1 3 . . . . . . 2 . . Operators 1 | . . . 1 . . . . . . . . . . . . . . Fabricators 1 | . . . . . . . . 1 . . . . . . . . . Siphon 1 | . . . . . . . . 1 . . . . . . . . . Repair Stations . | . . . . . . . . . . . . . . . . . . Recycling Units . | . . . . . . . . . . . . . . . . . . Scanalyzers . | . . . . . . . . . . . . . . . . . . Garrison Access . | . . . . . . . . . . . . . . . . . . Data Cores Recovered . | . . . . . . . . . . . . . . . . . . Used . | . . . . . . . . . . . . . . . . . . Hacking Detections 22 | . 3 . 2 . . . 3 9 . 1 . . . . 4 . . Full Trace Events 5 | . 1 . . . . . 1 2 . . . . . . 1 . . Feedback Events . | . . . . . . . . . . . . . . . . . . Feedback Blocked . | . . . . . . . . . . . . . . . . . . Robot Schematics Acquired 6 | . . . . . . . . . . . 6 . . . . . . Robots Built . | . . . . . . . . . . . . . . . . . . Matter . | . . . . . . . . . . . . . . . . . . Time . | . . . . . . . . . . . . . . . . . . Total Robot Build Rating . | . . . . . . . . . . . . . . . . . . Part Schematics Acquired 15 | . . . . . . . . 4 . . 10 . . . 1 . . Parts Built 3 | . . . . . . . . 3 . . . . . . . . . Matter 272 | . . . . . . . . 272 . . . . . . . . . Time 120 | . . . . . . . . 120 . . . . . . . . . Total Part Build Rating 11 | . . . . . . . . 11 . . . . . . . . . Parts Repaired 4 | . . . . . . . . 4 . . . . . . . . . Time 203 | . . . . . . . . 203 . . . . . . . . . Parts Recycled . | . . . . . . . . . . . . . . . . . . Recycled Matter . | . . . . . . . . . . . . . . . . . . Retrieved Matter . | . . . . . . . . . . . . . . . . . . Retrieved Components 10 | . . . 7 . . . . 3 . . . . . . . . . Parts Scanalyzed 4 | . . . . . . . . 3 . . . . . . 1 . . Part Schematics Acquired 3 | . . . . . . . . 2 . . . . . . 1 . . Parts Damaged . | . . . . . . . . . . . . . . . . . . Bothacking | -11 -10 -10 -9 -9 -9 -8 -8 -7 -7 -7 -7 -6 -6 -6 -6 -6 -6 ------------ Run | Scr Mat Min Mat Min Exi Min Mat Fac Low Low Dat Pro Fac Was Fac Low Low Used RIF Installer . | . . . . . . . . . . . . . . . . . . Robots Hacked . | . . . . . . . . . . . . . . . . . . Non-combat . | . . . . . . . . . . . . . . . . . . Combat . | . . . . . . . . . . . . . . . . . . Robot Hacks Applied . | . . . . . . . . . . . . . . . . . . Relay Couplers Released . | . . . . . . . . . . . . . . . . . . Robots Rewired . | . . . . . . . . . . . . . . . . . . Allies Hacked . | . . . . . . . . . . . . . . . . . . Hacks Repelled . | . . . . . . . . . . . . . . . . . . Allies | -11 -10 -10 -9 -9 -9 -8 -8 -7 -7 -7 -7 -6 -6 -6 -6 -6 -6 -------- Run | Scr Mat Min Mat Min Exi Min Mat Fac Low Low Dat Pro Fac Was Fac Low Low Total Allies 6 | . . . . 1 . . . 1 . . . 1 3 . . . . Largest Group 4 | . . . . 1 . . . 1 . . . 1 4 4 4 . . Highest-Rated Group 187 | . . . . 31 . . . 26 . . . 94 187 187 187 . . Highest-Rated Ally 94 | . . . . 31 . . . 26 . . . 94 94 94 94 . . Total Orders . | . . . . . . . . . . . . . . . . . . Ally Attacks 49 | . . . . 20 . . . . . 4 . 11 . . 14 . . Total Damage 964 | . . . . 209 . . . . . 216 . 229 . . 310 . . Kills 11 | . . . . 4 . . . . . 1 . 4 . . 2 . . Allies Corrupted . | . . . . . . . . . . . . . . . . . . Allies Melted 1 | . . . . . . . . . . 1 . . . . . . . Turrets Deployed 1 | . . . . . . . . . . 1 . . . . . . . Intel | -11 -10 -10 -9 -9 -9 -8 -8 -7 -7 -7 -7 -6 -6 -6 -6 -6 -6 ------- Run | Scr Mat Min Mat Min Exi Min Mat Fac Low Low Dat Pro Fac Was Fac Low Low Robot Analysis Total . | . . . . . . . . . . . . . . . . . . Derelict Logs Recovered 7 | . . . . 3 . . . . 2 1 . 1 . . . . . Drone Launches . | . . . . . . . . . . . . . . . . . . Drone Recoveries . | . . . . . . . . . . . . . . . . . . Exploration | -11 -10 -10 -9 -9 -9 -8 -8 -7 -7 -7 -7 -6 -6 -6 -6 -6 -6 ------------- Run | Scr Mat Min Mat Min Exi Min Mat Fac Low Low Dat Pro Fac Was Fac Low Low Turns Passed 14222 | 30 291 317 523 1014 2669 535 1285 2682 532 794 94 398 314 551 968 905 320 Spaces Moved 7045 | 13 150 90 279 736 1063 265 452 970 425 534 79 308 248 342 517 452 122 Core 14 | . . . 3 . 7 . 2 . . . . . . . . . 2 Treads 2455 | . 59 90 159 144 510 . 348 285 . . . . . . 288 452 120 Legs 1453 | 13 91 . . . 480 265 89 515 . . . . . . . . . Wheels 3049 | . . . 117 592 5 . . 170 425 534 79 308 248 342 229 . . Hover 61 | . . . . . 61 . . . . . . . . . . . . Flight 13 | . . . . . . . 13 . . . . . . . . . . Fastest Speed 100 | 120 120 160 100 100 130 190 180 120 110 120 110 120 120 120 140 180 160 Average Speed 171 | 120 135 160 137 115 234 190 230 215 118 127 111 120 120 146 166 180 190 Slowest Speed 2200 | 120 160 160 350 180 2200 190 1500 360 120 130 120 120 120 150 180 180 1100 Overloaded Moves . | . . . . . . . . . . . . . . . . . . Propulsion Burnouts . | . . . . . . . . . . . . . . . . . . Robots Hopped . | . . . . . . . . . . . . . . . . . . Cave-ins Triggered . | . . . . . . . . . . . . . . . . . . Exploration Rate (%) 48 | 2 29 36 25 97 91 48 39 26 71 72 68 52 10 95 17 61 27 Regions Visited 17 Branch Regions 10 Pre-discovered Areas 3 | . . . . 1 1 . . . . . 1 . . . . . . Known Exits Taken 5 | . . . . . . . 1 1 . 1 . . . . 1 1 . Unknown Exits Taken 10 | 1 1 1 1 1 1 1 . . 1 . 1 1 . . . . . Scrap Searched 10 | . . . . 2 . . . . 2 4 . 1 . . . 1 . Spaces Dug 33 | . . . . . . . . 10 1 . . . 21 1 . . . Terrain Destroyed 202 | . . 13 32 . 15 8 14 41 2 3 . . 21 1 13 27 12 Melee 12 | . . . . . . . . 10 1 . . . . 1 . . . Projectile 34 | . . . . . 1 8 14 . 1 3 . . 2 . 5 . . AOE 156 | . . 13 32 . 14 . . 31 . . . . 19 . 8 27 12 Terrain Rammed . | . . . . . . . . . . . . . . . . . . Walls Destroyed . | . . . . . . . . . . . . . . . . . . Machines Disabled . | . . . . . . . . . . . . . . . . . . Actions | -11 -10 -10 -9 -9 -9 -8 -8 -7 -7 -7 -7 -6 -6 -6 -6 -6 -6 --------- Run | Scr Mat Min Mat Min Exi Min Mat Fac Low Low Dat Pro Fac Was Fac Low Low Total 8469 | 18 201 212 356 832 1212 287 585 1422 438 592 87 323 260 382 591 502 169 Wait 597 | . 22 92 23 17 27 11 23 303 3 7 . 5 . 4 39 12 9 Move 7029 | 12 149 89 278 735 1062 264 451 969 424 533 78 307 248 341 516 451 122 Hop . | . . . . . . . . . . . . . . . . . . Pick Up 97 | . 5 2 6 9 27 . 4 14 . 12 . . 4 7 5 2 . Fast Attach 72 | 1 . . 4 1 18 . 10 24 1 2 . . 2 3 2 4 . Attach 53 | . 2 1 2 2 7 . 5 8 . 4 5 . . 1 3 5 8 Detach 24 | . . . 1 . 12 . 1 . . . 4 . . 1 2 1 2 Swap 41 | . 1 1 3 11 4 . 1 5 1 3 . 2 1 3 2 3 . Drop 123 | . 3 1 9 18 29 . 9 20 1 7 . . 3 12 6 5 . Fire 381 | 5 19 26 30 39 26 12 79 64 7 24 . . 2 . 15 18 15 Melee 36 | . . . . . . . 1 15 1 . . 8 . 10 . 1 . Ram 3 | . . . . . . . 1 . . . . . . . . . 2 Kick . | . . . . . . . . . . . . . . . . . . Crush 12 | . . . . . . . . . . . . . . . 1 . 11 Escape Stasis . | . . . . . . . . . . . . . . . . . . Rewire 1 | . . . . . . . . . . . . 1 . . . . . Trap . | . . . . . . . . . . . . . . . . . . Miscellaneous . | . . . . . . . . . . . . . . . . . . Route ------- -11/Scrapyard -10/Materials -10/Mines -9/Materials (discovered 2 exits: [*Min] / [*Sto]) -9/Mines (discovered 3 exits: *Mat x2 / *Exi) -9/Exiles -8/Mines (discovered 2 exits: *Mat x2) -8/Materials (discovered 3 exits: *Fac x3) -7/Factory (discovered 3 exits: [*Fac] / *Low x2) -7/Lower Caves -7/Lower Caves -7/Data Miner -6/Proximity Caves -6/Factory (discovered 2 exits: Low / Ext) -6/Waste -6/Factory (discovered 2 exits: *Low / *Ext) -6/Lower Caves -6/Lower Caves History --------- Turn | Location | Event 16 | -11/Scrapyard | Discovered new exit (range 3) 31 | -11/Scrapyard | Entered Materials 262 | -10/Materials | Discovered new exit (range 16) 302 | -10/Materials | Build established: Mutant 322 | -10/Materials | Entered Mines 393 | -10/Mines | Excavation squad dispatched 393 | -10/Mines | A large section of the Mines collapsed 503 | -10/Mines | Core integrity fell below 50% 612 | -10/Mines | Discovered new exit (range 12) 639 | -10/Mines | Entered Materials 639 | -9/Materials | Evolved 2 slots: Weapon x2 946 | -9/Materials | Discovered new exit (range 4) 973 | -9/Materials | Build established: Gunner 1143 | -9/Materials | Discovered new exit (range 13) 1162 | -9/Materials | Entered Mines 1293 | -9/Mines | Build established: Scavenger-Gunner 1357 | -9/Mines | Assembled infested the area 1444 | -9/Mines | Learned 2 Materials zone layouts 1670 | -9/Mines | Discovered new exit (range 8) 1792 | -9/Mines | Received a Mining Laser from a helpful Derelict 1954 | -9/Mines | Learned 4 Materials zone layouts 2044 | -9/Mines | Learned location of Zion (-6) 2129 | -9/Mines | Discovered new exit (range 15) 2168 | -9/Mines | Deemed a non-threat by the Exiles lab entrance 2168 | -9/Mines | Discovered new exit (range 5) 2176 | -9/Mines | Entered Exiles 2220 | -9/Exiles | Met 8R-AWN 2250 | -9/Exiles | Met EX-HEX 2373 | -9/Exiles | Met EX-DEC 2503 | -9/Exiles | Discovered new exit (range 10) 2918 | -9/Exiles | Met EX-BIN 2946 | -9/Exiles | Aligned with FarCom system 2949 | -9/Exiles | Given EX-Vault access code 3006 | -9/Exiles | Opened EX-Vault 3018 | -9/Exiles | Found YOLO Cannon 3027 | -9/Exiles | Found AWS/Autocannon 3032 | -9/Exiles | Found Trap Reconfigurator 3084 | -9/Exiles | Warned to stay clear of 0b10 Research branches 3315 | -9/Exiles | Attacked by the Exiles 3351 | -9/Exiles | Core integrity fell below 50% 3457 | -9/Exiles | Destroyed 8R-AWN 3476 | -9/Exiles | Found Prototype Device 3476 | -9/Exiles | Identified AS-neutralizer No. 17b 3482 | -9/Exiles | Lost 7 parts (2n1u4w) 3507 | -9/Exiles | Found Prototype Processor 3640 | -9/Exiles | Destroyed EX-HEX 3721 | -9/Exiles | Destroyed EX-BIN 3730 | -9/Exiles | Destroyed EX-DEC 3743 | -9/Exiles | Build established: Gunner 3792 | -9/Exiles | Found Prototype Device 3792 | -9/Exiles | Identified System Purifier 4306 | -9/Exiles | Build established: Hauler-Gunner 4656 | -9/Exiles | Found Deploy-a-Sentry 4845 | -9/Exiles | Stole four prototypes: AWS/Autocannon, Trap Reconfigurator, YOLO Cannon, Deploy-a-Sentry 4845 | -9/Exiles | Entered Mines 5186 | -8/Mines | Discovered new exit (range 6) 5370 | -8/Mines | Discovered new exit (range 5) 5380 | -8/Mines | Entered Materials 5380 | -8/Materials | Evolved 2 slots: Utility x2 5381 | -8/Materials | Identified exit to Factory 5461 | -8/Materials | Destroyed 8 combat bots 5868 | -8/Materials | Build established: Scavenger-Gunner 6665 | -8/Materials | Entered Factory 6665 | -7/Factory | Evolved 2 slots: Utility x2 7244 | -7/Factory | Identified Exp. Targeting Computer 7686 | -7/Factory | Repaired Hvy. Ion Engine 7748 | -7/Factory | Repaired Hvy. Particle Gun? 7853 | -7/Factory | Repaired Prc. Beam Rifle 8021 | -7/Factory | Discovered new exit (range 15) 8101 | -7/Factory | Repaired Particle Gun 8339 | -7/Factory | Lost 3 parts (1n2w) 8420 | -7/Factory | Identified exit to Lower Caves 8563 | -7/Factory | Lost 3 parts (1p1n1w) 8626 | -7/Factory | Lost 5 parts (1n2u2w) 9042 | -7/Factory | Fabricated Arm. Huge Wheel (x2) 9192 | -7/Factory | Fabricated System Shield (x1) 9213 | -7/Factory | Build established: Hacker-Mutant 9269 | -7/Factory | Core integrity fell below 50% 9347 | -7/Factory | Entered Lower Caves 9549 | -7/Lower Caves | Learned location of 1 exit from Factory 9614 | -7/Lower Caves | Encountered a Warlord checkpoint 9655 | -7/Lower Caves | Learned Factory stockpile data 9790 | -7/Lower Caves | Build established: Hacker-Gunner 9858 | -7/Lower Caves | Discovered new exit (range 12) 9879 | -7/Lower Caves | Entered another Lower Caves area 10023 | -7/Lower Caves | DAS Turret deployed 10024 | -7/Lower Caves | Attracted the attention of an 0b10 base 10039 | -7/Lower Caves | Core integrity fell below 20% 10073 | -7/Lower Caves | Destroyed 8 combat bots 10083 | -7/Lower Caves | Learned Research stockpile data 10083 | -7/Lower Caves | Learned Research terminal intel 10453 | -7/Lower Caves | Identified exit to Data Miner 10532 | -7/Lower Caves | Spotted OU-3E5(f) 10533 | -7/Lower Caves | Spotted GZ-0X6(f) 10534 | -7/Lower Caves | Encountered a Master Thief 10534 | -7/Lower Caves | Encountered a Master Thief 10535 | -7/Lower Caves | Spotted BD-82O(f) 10536 | -7/Lower Caves | Encountered a Master Thief 10536 | -7/Lower Caves | Spotted 8C-2B9(f) 10537 | -7/Lower Caves | Encountered a Master Thief 10539 | -7/Lower Caves | Trap Reconfigurator stolen by Master Thief 10539 | -7/Lower Caves | Broken AWS/Autocannon stolen by Master Thief 10540 | -7/Lower Caves | YOLO Cannon stolen by Master Thief 10562 | -7/Lower Caves | System Purifier stolen by Master Thief 10673 | -7/Lower Caves | Entered Data Miner 10673 | -7/Data Miner | Discovered new exit (range 7) 10698 | -7/Data Miner | Met Data Miner 10717 | -7/Data Miner | Learned location of Section 7 (-2) 10717 | -7/Data Miner | Acquired the access code to Warlord's prototype stash 10736 | -7/Data Miner | Received God Mode back door access code from Data Miner 10767 | -7/Data Miner | Entered Proximity Caves 11004 | -6/Proximity Caves | Escorted by Enhanced Grunt 11109 | -6/Proximity Caves | Attracted the attention of an 0b10 checkpoint 11138 | -6/Proximity Caves | Build established: Hacker-Tank 11158 | -6/Proximity Caves | Discovered new exit (range 8) 11165 | -6/Proximity Caves | Entered Factory 11165 | -6/Factory | Accompanied by 1 ally 11165 | -6/Factory | Evolved 2 slots: Utility x2 11166 | -6/Factory | Identified exit to Lower Caves 11167 | -6/Factory | Identified exit to Extension 11463 | -6/Factory | Allied Derelicts emerged from ambush trap array 11479 | -6/Factory | Sucked down chute 11479 | -6/Factory | Entered Waste 11479 | -6/Waste | The area was eerily silent 11561 | -6/Waste | Found Damper Plating 11580 | -6/Waste | 4 allies followed down the chute 11605 | -6/Waste | Found Damper Plating 11622 | -6/Waste | Found Enh. Force Lance 11795 | -6/Waste | Build established: Hacker-Mutant 12003 | -6/Waste | Discovered new exit (range 12) 12030 | -6/Waste | Entered Factory 12030 | -6/Factory | Accompanied by 4 allies 12378 | -6/Factory | Build established: Hacker-Tank 12416 | -6/Factory | Incoming investigation squad redirected 12552 | -6/Factory | Incoming investigation squad redirected 12777 | -6/Factory | Discovered exit to Extension (range 11) 12903 | -6/Factory | Build established: Scavenger-Tank 12915 | -6/Factory | Discovered exit to Lower Caves (range 5) 12998 | -6/Factory | Entered Lower Caves 13146 | -6/Lower Caves | Destroyed 7 combat bots 13299 | -6/Lower Caves | Found Alien Artifact 13586 | -6/Lower Caves | Build established: Scavenger-Mutant 13652 | -6/Lower Caves | Lost 4 parts (3u1w) 13883 | -6/Lower Caves | Discovered new exit (range 11) 13891 | -6/Lower Caves | Attracted the attention of an 0b10 outpost 13902 | -6/Lower Caves | Identified exit to Lower Caves 13903 | -6/Lower Caves | Entered another Lower Caves area 13903 | -6/Lower Caves | Spotted 0J-P97(f) 13904 | -6/Lower Caves | Encountered a Master Thief 13904 | -6/Lower Caves | Spotted 9H-O33(f) 13905 | -6/Lower Caves | Encountered a Master Thief 13909 | -6/Lower Caves | Alien Artifact stolen by Master Thief 13927 | -6/Lower Caves | Enh. Force Lance stolen by Master Thief 14149 | -6/Lower Caves | Attracted the attention of an 0b10 outpost 14182 | -6/Lower Caves | Core integrity fell below 50% 14210 | -6/Lower Caves | Core integrity fell below 20% 14223 | -6/Lower Caves | Destroyed by G-50 Soldier with Heavy Laser Last Messages --------------- 14196_ Slammed into Y-64 Sentinel. 14197_ G-50 Soldier misfires. 14198_ Slug penetrates G-50 Soldier. 14200_ Penetrated by Slug. 14200_ Mak. Power Source destroyed. 14203_ G-50 Soldier misfires. 14203_ Penetrated by Slug. 14203_ Slammed into G-50 Soldier. 14205_ Adv. Heat Sink fries itself beyond repair. 14206_ Penetrated by Slug. 14209_ Nuclear Pulse Thruster destroyed. 14209_ Acquired 65 matter. 14212_ Penetrated by Slug. 14214_ Hcp. Storage Unit destroyed. 14214_ Penetrated by Slug. 14217_ Slug penetrates Machine. 14217_ Machine disabled. 14220_ Penetrated by Slug. 14220_ Gravity Neutralizing Apparatus destroyed. 14223_ Penetrated by Slug. Map ----- +----------------------------------------------------+ | ?????????# ##?????????????##?# # | | ????????# ## #?????????????# ? % | | ????????### ?## ##????????????# ## | | ??????????####??# #?????????????## | | ????????????????# ### ####??????????# | | ????????????????# #####?#### ##???????????# # | | ????????????????# ##????????# ##??####??### | | ???????????????## ##????????# #### #### | | ??????????????## ###??????# # # | | ?????????????## ###????# ## # | | ?????????##### ## ## #### ## # | | ????????## ## ####??## # | | ????????# ### ??????## ## | | ????????# ### ### ???????## #? | | ????????# ##??# #?# ????????# # #? | | ????????# ##????####?# #????????# #? | | ????????# ## ####??????? ????????? # # | | ????????# #?# ## ###????? ???????? # # | | ????????## #??# ##???? ##????? | | ?????????######### #???? ##???# # # | | ????????????# # ##???? #??? # | | ????????????# ###### #?#???? #??# ## # #? | | ???????????????????# ###??? #???# ? #? | | ????????????????#### # #### #???# ? ? | | ????????????????# # Y #???# ?? #? | | ????????????????# @% #????# ??# #####? | | ????????????????# #????#???# ?????? | | ????????????????## # g ### #??????? ?????? | | ?????????????????#### # "#??? #???? ?????? | | ????????????????????# # #??????????????????? | | ????????????????????##%! # "#??????????????????? | | ?????????????????????# ## "#??????????????????? | | ?????????????????????# # ??"#??????????????????? | | ?????????????????????# #""""?"#??????????????????? | | ????????????????????? #####??#??????????????????? | | ????????????????????? ?????????????????????????? | | ????????????????????? ?????????????????????????? | | ????????????????????? ?????????????????????????? | | ????????????????????# ##?????????????????????????? | | ?????????????????????#???????????????????????????? | | ?????????????????????????????????????????????????? | | ?????????????????????????????????????????????????? | | ?????????????????????????????????????????????????? | | ?????????????????????????????????????????????????? | | ?????????????????????????????????????????????????? | | ?????????????????????????????????????????????????? | | ?????????????????????????????????????????????????? | | ?????????????????????????????????????????????????? | | ?????????????????????????????????????????????????? | | ?????????????????????????????????????????????????? | +----------------------------------------------------+ Best States ------------- Heat Dissipation 56 Energy Generation 19 Energy Capacity 315 Matter Stores 300 Matter Capacity 500 Sight Range 16 Terrain Scan Density 10 Additional Mass Support 12 Armor Coverage 1425 Resistance: EM 90 Evasion (%) 40 Targeting Accuracy 12 Core Analysis 10 Recoil Reduction 2 Offensive Hacking 11 Defensive Hacking 10 Item Schematics ----------------- Hacking Suite | -7/Factory | Scanalyzed Mak. Power Source | -7/Factory | Scanalyzed System Shield | -7/Factory | Hacked Arm. Huge Wheel | -7/Factory | Hacked Combat Drone Bay | -7/Data Miner | Free Lgt. Regenerative Plating | -7/Data Miner | Free Cmb. Gravmag System | -7/Data Miner | Free Triangulator | -7/Data Miner | Free Exp. Sensor Array | -7/Data Miner | Free Exp. Terrain Scanner | -7/Data Miner | Free Exp. Terrain Scan Processor | -7/Data Miner | Free Mni. Smartbomb Launcher | -7/Data Miner | Free Plasma Sword | -7/Data Miner | Free Kinetic Spear | -7/Data Miner | Free Hyp. Gauss Cannon | -6/Factory | Scanalyzed Robot Schematics ------------------ S-27 Virus | -7/Data Miner | Free G-50 Soldier | -7/Data Miner | Free G-67 Veteran | -7/Data Miner | Free P-70 Sage | -7/Data Miner | Free I-36 Angel | -7/Data Miner | Free L-41 Fighter | -7/Data Miner | Free Fabricated ------------ Arm. Huge Wheel | x2 | -7/Factory System Shield | x1 | -7/Factory Alien Tech Used ----------------- None Achievements -------------- None Challenges ------------ None Game ------ Seed ChargeScatterRifle Manual? 0 Play Time 01:39:05 Cumulative 103.7 hours Start 2020.11.30 @ 21:59:19 End 2020.11.30 @ 23:37:06 Sessions 1 Manual Loads 0 Difficulty Rogue Special Mode Halloween2020/ForbiddenLore Game No. 94 Rogue 94 Adventurer 0 Explorer 0 Win Type - Total 0 Types 0/0/0/0/0/0/0/0/0 Lore% 48 Gallery% 57 Achievement% 52 Wizard Run 0 Options --------- ASCII 0 Keyboard 1 Movement Numpad Keybinds 0 Fullscreen 1 Font 12/Terminus Map View 83x54 Tactical HUD 1 Map Filters NONE Filters NONE Steam 1 RUN: 5f896477-3690-463c-85ee-1201bca59124